bitfinex/quotes_ETHUSD_20240916
["timestamp","ask_amount","ask_price","bid_price","bid_amount"]
[1726447434068,2.3604,2313.4,2313.0,4.32325]
[1726447434407,2.3604,2313.4,2313.0,4.32334]
[1726447434688,2.3604,2313.4,2313.0,4.32328]
[1726447434889,2.3604,2313.4,2313.0,4.32327]
[1726447435450,2.3604,2313.4,2312.9,3.0]
[1726447435451,6.68334,2313.3,2312.9,3.0]
[1726447436052,4.32302,2313.2,2312.7,3.0]
[1726447436290,7.84073279,2313.3,2312.7,7.32394]
[1726447436448,2.3604,2313.3,2312.9,3.0]
[1726447436651,2.3604,2313.3,2313.0,4.32336]
[1726447438463,2.3604,2313.3,2312.9,3.0]
[1726447438690,2.3604,2313.3,2312.9,7.32347]
[1726447439802,4.83685463,2313.3,2312.7,4.32389]
[1726447440009,2.3658,2313.2,2312.8,3.0]
[1726447440154,2.3658,2313.2,2312.7,7.32392]
[1726447440353,4.3232,2313.1,2312.7,3.0]
[1726447440659,2.3658,2313.0,2312.5,4.32425]
[1726447441091,2.3658,2313.0,2312.6,4.32412]
[1726447441264,2.3658,2313.0,2312.8,4.32366]
[1726447441595,2.4302,2313.2,2312.8,8.64732]
[1726447441899,2.4302,2313.2,2312.7,2.3259]
[1726447442202,2.3878,2313.5,2313.0,4.32323]
[1726447442410,2.3878,2313.5,2313.3,4.32273]
[1726447442699,2.3878,2313.5,2313.0,4.32325]
[1726447442865,2.3878,2313.5,2313.1,4.32318]
[1726447445799,0.08494445,2313.4,2313.1,4.32318]
[1726447446006,0.08494445,2313.4,2313.1,0.864643]
[1726447446182,0.08494445,2313.4,2313.1,4.3231]
[1726447446503,0.08494445,2313.4,2313.0,4.32325]
[1726447446504,2.4133,2313.3,2313.0,3.0]
[1726447446654,0.08492326,2313.2,2313.0,3.0]
[1726447446994,2.4133,2313.3,2313.0,3.0]
[1726447446995,2.4133,2313.3,2313.0,7.32337]
[1726447447182,0.08492326,2313.1,2313.0,7.32337]
[1726447447390,2.4133,2313.3,2313.1,4.32319]
[1726447449102,0.0405143,2313.6,2313.5,8.6449]
[1726447450395,0.0405143,2313.6,2313.5,11.6449]
[1726447451001,0.0405143,2313.6,2313.5,15.96735]
[1726447451207,0.0405143,2313.6,2313.5,16.91342703]
[1726447451378,0.0405143,2313.6,2313.5,23.62168745]
[1726447451579,0.0405143,2313.6,2313.5,28.49413745]
[1726447452320,0.0405143,2313.6,2313.5,30.83202317]
[1726447452467,0.0405143,2314.3,2314.2,14.10008]
[1726447452904,0.12574122,2314.3,2314.2,14.10008]
[1726447453072,0.0405143,2314.3,2314.2,14.10008]
[1726447453814,0.0405143,2314.3,2314.2,18.31834042]
[1726447454108,0.0405143,2314.3,2314.2,18.42122]
[1726447454282,0.0405143,2314.3,2314.2,23.68843703]
[1726447454483,0.0405143,2314.3,2314.2,26.593789]
[1726447454811,0.0405143,2314.3,2314.2,32.01152293]
[1726447454968,0.0405143,2314.3,2314.2,35.24371309]
[1726447455419,0.0405143,2314.3,2314.2,27.027989]
[1726447455728,0.0405143,2314.3,2314.2,25.61471719]
[1726447455868,0.0405143,2314.3,2314.2,27.02649696]
[1726447456506,0.0405143,2314.3,2314.2,24.67263703]
[1726447456701,0.0405143,2314.3,2314.2,20.74191159]
[1726447456875,0.0405143,2314.3,2314.2,19.80149703]
[1726447457805,0.0405143,2314.3,2314.2,12.04615703]
[1726447458192,0.12854233,2314.3,2314.2,12.04615703]
[1726447458405,0.0405143,2314.3,2314.2,12.04615703]
[1726447458563,0.0405143,2314.3,2314.2,16.36729703]
[1726447459281,0.0405143,2314.3,2314.2,19.36729703]
[1726447459632,0.0405143,2314.3,2314.2,25.08879759]
[1726447459790,0.0405143,2314.3,2314.2,24.53879759]
[1726447460994,7.37,2315.0,2314.7,8.64028]
[1726447461231,0.0405143,2315.1,2314.8,4.3199]
[1726447461232,0.08786589,2314.9,2314.8,4.3199]
[1726447461436,0.08786589,2314.9,2314.8,11.63992]
[1726447461639,0.0405143,2315.1,2314.8,8.35236718]
[1726447461806,0.08784473,2314.9,2314.8,12.67238718]
[1726447462010,0.0405143,2315.1,2315.0,7.31965]
[1726447462259,2.3086902,2315.2,2315.1,4.31946]
[1726447464427,2.3086902,2315.2,2315.0,4.31961]
[1726447464638,2.3086902,2315.2,2315.1,4.31946]
[1726447464800,2.3086902,2315.2,2315.0,4.31961]
[1726447464999,2.3086902,2315.2,2315.0,4.31954]
[1726447465597,2.3086902,2315.2,2314.9,3.0]
[1726447465808,2.3086902,2315.2,2314.7,3.0]
[1726447466023,2.63466902,2315.1,2314.7,3.0]
[1726447466222,2.4038,2315.1,2315.0,3.0]
[1726447466645,4.31964,2315.1,2314.5,4.32041]
[1726447466848,2.4038,2314.9,2314.5,8.64084]
[1726447467052,2.4038,2314.9,2314.5,4.32041]
[1726447467403,2.4038,2314.9,2314.4,4.32074]
[1726447467638,3.1006189,2314.9,2314.3,4.32081]
[1726447467840,2.4038,2314.9,2314.6,4.32037]
[1726447468340,2.4038,2314.9,2314.6,4.32027]
[1726447468546,0.0435902,2315.2,2314.8,4.31986]
[1726447468749,0.0435902,2315.2,2314.9,3.0]
[1726447468750,2.4492,2315.1,2314.9,3.0]
[1726447469710,2.4492,2315.1,2314.7,3.0]
[1726447469914,0.24927902,2315.0,2314.5,3.0]
[1726447470114,2.4492,2315.1,2314.5,3.0]
[1726447470319,6.76879,2315.1,2314.5,3.0]
[1726447470547,2.4492,2315.1,2314.7,3.0]
[1726447470721,3.56235802,2315.1,2314.7,3.0]
[1726447471852,2.4492,2315.0,2314.5,7.32058]
[1726447472052,2.4492,2314.9,2314.5,3.0]
[1726447472210,2.4492,2314.9,2314.5,7.32058]
[1726447472650,2.4492,2314.8,2314.5,3.0]
[1726447472857,2.4492,2314.8,2314.5,7.32054]
[1726447473009,2.4492,2314.8,2314.5,3.0]
[1726447473725,4.32033,2314.7,2314.2,4.32102]
[1726447473915,2.253,2314.6,2314.4,4.32073]
[1726447474120,2.253,2314.6,2314.4,4.32066]
[1726447474665,2.253,2314.6,2314.2,8.64206]
[1726447475022,2.253,2314.6,2314.3,3.0]
[1726447475919,0.08764727,2314.5,2314.3,3.0]
[1726447476326,0.08764727,2314.5,2314.3,7.32094]
[1726447476532,0.08764727,2314.5,2314.4,8.64154]
[1726447476866,2.4797,2314.8,2314.6,4.32036]
[1726447477247,2.4797,2314.8,2314.6,4.32028]
[1726447477422,7.4135902,2315.2,2314.6,4.32029]
[1726447477423,2.4797,2315.1,2314.6,4.32029]
[1726447477759,3.22105902,2315.1,2314.6,4.32029]
[1726447477921,3.22105902,2315.1,2314.7,4.3201]
[1726447478117,2.4797,2315.1,2314.7,4.3201]
[1726447479122,4.31969,2315.0,2314.5,4.32053]
[1726447479466,2.4797,2314.9,2314.5,7.32053]
[1726447479763,2.4797,2314.9,2314.6,4.32038]
[1726447480355,3.159619,2314.9,2314.5,3.0]
[1726447480517,2.4797,2314.9,2314.5,3.0]
[1726447480722,2.4797,2314.9,2314.5,7.32057]
[1726447482066,2.4797,2314.9,2314.7,4.3201]
[1726447482366,2.4797,2314.9,2314.6,4.32036]
[1726447482726,2.4797,2314.9,2314.6,8.64065]
[1726447483079,2.4797,2314.9,2314.6,5.4929946]
[1726447483219,2.4797,2314.9,2314.8,4.32002]
[1726447483550,2.3986,2315.1,2314.8,4.32002]
[1726447483922,2.3986,2315.1,2314.9,4.31981]
[1726447484322,2.3986,2315.1,2314.8,3.0]
[1726447484762,2.3986,2315.1,2314.8,7.31997]
[1726447485593,2.3986,2315.1,2315.0,4.31965]
[1726447486700,2.3986,2315.1,2314.9,8.63947]
[1726447486994,2.3986,2315.1,2314.9,4.31973]
[1726447487195,2.3986,2315.1,2315.0,4.31965]
[1726447489000,2.37543492,2315.1,2315.0,4.31965]
[1726447489859,0.0435902,2315.2,2315.0,4.31965]
[1726447490586,4.24662756,2315.2,2314.6,3.0]
[1726447490793,4.20303736,2315.0,2314.6,4.32022]
[1726447490959,4.31989,2314.9,2314.2,4.321]
[1726447491155,4.20303736,2314.6,2314.2,4.321]
[1726447491357,4.20303736,2314.6,2314.3,4.32089]
[1726447491358,0.08744986,2314.5,2314.3,4.32089]
[1726447491996,2.54774986,2314.5,2314.3,4.32089]
[1726447492157,2.54774986,2314.5,2313.9,2.4237]
[1726447492158,4.20303736,2314.4,2314.0,4.32142]
[1726447492357,4.20303736,2314.4,2314.1,4.32123]
[1726447492713,4.20303736,2314.4,2314.0,4.32139]
[1726447492714,0.08744986,2314.3,2314.0,4.32139]
[1726447492864,0.08744986,2314.3,2314.1,4.32133]
[1726447493078,0.08744986,2314.3,2314.0,4.32139]
[1726447493280,6.68833736,2314.2,2313.8,4.32175]
[1726447493494,2.4853,2314.2,2313.7,0.08642916]
[1726447493692,0.08711833,2314.1,2314.0,4.32142]
[1726447494183,4.29015569,2314.1,2313.7,4.32194]
[1726447494396,4.29015569,2314.1,2313.8,4.32178]
[1726447494603,4.29015569,2314.1,2313.9,3.0]
[1726447494604,0.08711833,2314.1,2313.9,3.0]
[1726447494776,0.08711833,2314.1,2314.0,3.0]
[1726447496486,0.08711833,2314.1,2314.0,3.732158]
[1726447496840,2.366,2314.4,2314.0,3.732158]
[1726447496841,2.366,2314.4,2314.0,8.053548]
[1726447497009,0.08711833,2314.3,2314.0,7.32139]
[1726447498119,0.08711833,2314.3,2314.0,3.0]
[1726447500612,0.08711833,2314.3,2314.0,7.3215]
[1726447500989,0.08711833,2314.3,2314.0,3.0]
[1726447501185,0.08711833,2314.3,2314.0,7.32142]
[1726447501428,0.08711833,2314.3,2314.1,4.3212]
[1726447503027,0.08711833,2314.3,2314.0,8.485768]
[1726447503325,0.08711833,2314.3,2314.0,3.0]
[1726447503526,0.08711833,2314.3,2313.2,8.52601736]
[1726447503527,6.59243736,2314.1,2313.3,2.4904]
[1726447503730,2.3894,2313.7,2313.2,4.32291]
[1726447504027,2.3894,2313.7,2313.2,4.32299]
[1726447504190,0.08652576,2313.6,2313.2,4.32299]
[1726447504521,0.08652576,2313.6,2313.4,4.32253]
[1726447504711,0.08652576,2313.6,2313.5,8.73134159]
[1726447504916,0.08652576,2313.6,2313.5,14.22174159]
[1726447505094,2.3894,2313.9,2313.6,4.32226]
[1726447505293,2.3894,2313.9,2313.4,4.3225]
[1726447505495,2.3894,2313.7,2313.3,3.0]
[1726447505829,4.44197736,2313.8,2313.0,2.4904]
[1726447505830,2.3894,2313.5,2313.0,4.32327]
[1726447506122,2.3894,2313.3,2312.8,4.32361]
[1726447506331,2.3894,2313.3,2312.8,5.005011]
[1726447506628,4.40916576,2313.4,2312.6,4.32402]
[1726447506629,4.40954576,2313.2,2312.6,4.32402]
[1726447506834,2.4939,2313.1,2312.7,4.32379]
[1726447506987,2.4939,2313.3,2313.0,4.32325]
[1726447507185,0.08652576,2313.2,2312.9,4.32344]
[1726447507388,2.4939,2313.3,2312.9,4.32344]
[1726447507691,0.08538201,2313.2,2312.9,8.64688]
[1726447507915,0.08538201,2313.2,2312.9,4.32344]
[1726447508118,2.4939,2313.3,2312.9,4.32344]
[1726447508402,2.4939,2313.3,2313.0,4.32334]
[1726447508601,0.08538201,2313.2,2313.0,4.32334]
[1726447508904,0.08538201,2313.2,2312.4,2.3227]
[1726447508905,2.4321,2313.0,2312.4,4.32435]
[1726447509088,2.4321,2312.9,2312.4,4.32435]
[1726447509288,6.75568,2312.9,2312.4,4.32435]
[1726447509636,0.08524069,2312.8,2312.4,4.32435]
[1726447509987,2.4321,2312.7,2312.2,4.32477]
[1726447510187,2.4321,2312.7,2312.3,3.0]
[1726447510490,0.08524069,2312.6,2312.2,4.32473]
[1726447510686,2.2592,2312.5,2312.2,4.32473]
[1726447511201,0.08524069,2312.4,2312.3,4.32469]
[1726447511403,9.52915759,2313.6,2312.5,4.32416]
[1726447511404,2.2592,2312.8,2312.5,4.32416]
[1726447511647,0.0849792,2312.7,2312.6,4.756436]
[1726447511963,2.2592,2312.8,2312.6,4.32402]
[1726447512226,2.2592,2312.8,2312.5,4.32416]
[1726447512429,0.0836302,2312.7,2312.4,3.0]
[1726447512627,2.2592,2312.8,2312.4,7.32449]
[1726447512929,0.0836302,2312.7,2312.4,7.32449]
[1726447513337,2.2592,2312.8,2312.5,4.32427]
[1726447513488,0.0836302,2312.6,2312.5,4.32427]
[1726447513837,2.2592,2312.8,2312.6,4.32406]
[1726447513984,0.0836302,2312.7,2312.6,4.32406]
[1726447514187,2.2592,2312.8,2312.6,4.32406]
[1726447514387,2.3668,2313.1,2312.7,4.32395]
[1726447514628,2.3668,2313.1,2312.8,4.32373]
[1726447514919,2.3668,2313.1,2312.6,8.64798]
[1726447515122,0.29168,2313.0,2312.6,4.32397]
[1726447515730,0.29168,2313.0,2312.6,8.64799]
[1726447516109,0.29168,2313.0,2312.6,4.32397]
[1726447516447,0.29168,2313.0,2312.6,8.648]
[1726447516618,0.29168,2313.0,2312.6,4.32397]
[1726447517349,0.29168,2313.0,2312.6,8.64799]
[1726447517520,2.3668,2313.1,2312.6,8.64799]
[1726447517721,2.3668,2313.1,2312.7,4.32392]
[1726447518045,2.3668,2313.1,2312.6,8.64798]
[1726447518218,4.32341,2313.0,2312.5,4.32421]
[1726447518413,0.723991,2313.0,2312.6,4.324]
[1726447518631,2.3668,2313.1,2312.6,4.324]
[1726447518842,2.3668,2313.1,2312.6,8.64802]
[1726447519031,2.3668,2313.1,2312.6,8.64803]
[1726447519361,2.3668,2313.1,2312.6,4.324]
[1726447519533,3.090791,2313.1,2312.6,8.64802]
[1726447519852,3.090791,2313.1,2312.6,8.64803]
[1726447520018,3.090791,2313.1,2312.6,4.324]
[1726447520711,0.0836302,2313.0,2312.6,4.324]
[1726447521038,0.0836302,2313.0,2312.6,8.64803]
[1726447521208,0.0836302,2313.0,2312.7,4.32388]
[1726447521543,0.0836302,2313.0,2312.8,4.32375]
[1726447522251,0.0836302,2313.0,2312.8,5.188525]
[1726447522406,0.0836302,2313.0,2312.8,4.32365]
[1726447523822,0.0836302,2313.0,2312.9,4.32357]
[1726447524061,0.0836302,2313.0,2312.9,8.64714]
[1726447525061,0.0836302,2313.0,2312.8,4.32363]
[1726447525218,0.0836302,2313.0,2312.9,8.64714]
[1726447525762,9.687,2313.4,2313.2,4.3229]
[1726447525936,2.317,2313.4,2313.2,4.75519]
[1726447526269,2.317,2313.4,2313.2,4.3229]
[1726447526591,2.317,2313.8,2313.4,4.32261]
[1726447526858,2.317,2313.8,2313.5,4.32242]
[1726447527167,0.6525749,2313.7,2313.5,4.32242]
[1726447527457,0.6525749,2313.7,2313.4,4.32253]
[1726447527664,2.317,2313.8,2313.5,4.32239]
[1726447527966,2.317,2313.8,2313.6,4.32225]
[1726447528460,2.317,2313.8,2313.7,4.32208]
[1726447528836,2.317,2313.8,2313.6,4.32225]
[1726447529148,2.317,2313.8,2313.5,4.32242]
[1726447529757,4.20874898,2313.7,2313.4,4.32251]
[1726447529926,4.20874898,2313.7,2313.4,8.64504]
[1726447530130,2.317,2313.8,2313.4,8.64504]
[1726447530337,2.317,2313.8,2313.4,4.32251]
[1726447530555,2.9695749,2313.8,2313.4,4.32251]
[1726447530960,2.9695749,2313.8,2313.5,4.32232]
[1726447531150,2.317,2313.8,2313.7,4.32208]
[1726447531361,2.317,2313.8,2313.6,4.32225]
[1726447531564,2.317,2313.8,2313.7,4.32208]
[1726447531972,2.3025,2314.0,2313.8,4.32182]
[1726447532489,2.3025,2314.0,2313.9,4.3217]
[1726447532845,0.45260409,2314.4,2313.9,4.3217]
[1726447532846,2.3025,2314.2,2313.9,4.3217]
[1726447533049,9.7949,2314.5,2314.2,4.321]
[1726447533248,6.63364898,2314.5,2314.0,4.32137]
[1726447533493,8.03401388,2314.5,2314.1,4.3212]
[1726447533660,6.63364898,2314.5,2314.3,4.3209]
[1726447534150,6.63364898,2314.5,2314.1,8.64242]
[1726447534535,6.63364898,2314.5,2314.2,4.32112]
[1726447534897,2.3966,2314.2,2313.9,4.32156]
[1726447535048,4.20874898,2314.1,2313.8,4.32188]
[1726447535250,2.3966,2313.8,2313.3,4.32269]
[1726447535453,2.3966,2313.8,2313.3,4.3228]
[1726447535454,4.20874898,2313.6,2313.3,4.3228]
[1726447535759,4.20874898,2313.6,2313.1,4.32303]
[1726447535760,2.3966,2313.5,2313.1,4.32303]
[1726447535956,2.48119824,2313.5,2313.1,4.32318]
[1726447536180,3.22915896,2313.5,2313.1,4.32318]
[1726447536500,3.22915896,2313.5,2312.9,4.32342]
[1726447536657,6.60534898,2313.4,2313.0,4.32326]
[1726447536865,0.08540344,2313.3,2313.0,4.32326]
[1726447537072,0.08540344,2313.3,2312.6,6.69866]
[1726447537073,0.08540344,2313.3,2312.8,4.32364]
[1726447537396,0.08540344,2313.3,2312.9,4.32356]
[1726447537397,2.3966,2313.2,2312.9,4.32356]
[1726447537704,7.27442422,2313.2,2312.7,4.32381]
[1726447537924,4.20874898,2313.0,2312.5,8.64841]
[1726447538064,3.20944586,2313.1,2312.6,4.32411]
[1726447538265,2.48200344,2313.1,2312.6,4.32411]
[1726447539096,2.48200344,2313.1,2312.7,4.32392]
[1726447539905,2.48200344,2313.1,2312.7,8.64773]
[1726447540107,2.48200344,2313.1,2312.9,4.32354]
[1726447540899,2.48200344,2313.1,2313.0,4.32338]
[1726447541274,2.48200344,2313.1,2312.9,4.32344]
[1726447541480,2.48200344,2313.1,2313.0,4.32338]
[1726447541702,0.08540344,2313.1,2313.0,8.64676]
[1726447541863,0.08540344,2313.1,2313.0,12.511436]
[1726447542066,7.37,2313.8,2313.6,4.32226]
[1726447542271,1.79833335,2314.5,2313.6,4.32226]
[1726447542272,0.08540344,2313.7,2313.6,8.64452]
[1726447542614,13.03886001,2314.8,2314.0,4.32152]
[1726447542769,2.339,2314.3,2314.2,4.32114]
[1726447542964,2.339,2314.6,2314.4,4.32076]
[1726447543211,0.08540344,2314.5,2314.4,4.32076]
[1726447543708,0.08540344,2314.5,2314.2,4.32105]
[1726447543882,0.08540344,2314.5,2314.0,4.32145]
[1726447544084,0.08540344,2314.5,2313.8,4.32182]
[1726447544085,2.278,2314.4,2313.8,4.32182]
[1726447544397,2.278,2314.2,2313.6,4.32213]
[1726447544599,0.80059888,2314.1,2313.6,4.32213]
[1726447545120,2.3738,2313.9,2313.4,8.64499]
[1726447545408,0.714913,2314.1,2313.8,4.32189]
[1726447545595,0.08568588,2314.0,2313.8,4.32189]
[1726447545816,2.3738,2314.2,2313.8,4.32189]
[1726447546015,0.08568588,2314.1,2313.8,4.32189]
[1726447546384,0.08568588,2314.1,2313.6,4.32213]
[1726447547398,0.76373147,2314.1,2313.6,4.32213]
[1726447548233,0.08568588,2314.1,2313.6,4.32213]
[1726447548592,0.08568588,2314.1,2313.8,4.32184]
[1726447548992,0.08568588,2314.1,2313.6,8.64426]
[1726447549832,0.08568588,2314.1,2313.9,4.32165]
[1726447550065,0.08568588,2314.1,2314.0,4.32152]
[1726447551030,0.08568588,2314.1,2313.9,4.32165]
[1726447551692,0.08568588,2314.1,2313.9,4.32157]
[1726447553008,0.08568588,2314.1,2313.9,8.64316]
[1726447553215,0.08568588,2314.1,2313.9,4.32157]
[1726447553398,0.08568588,2314.1,2314.0,4.32152]
[1726447553795,0.08568588,2314.1,2313.9,4.32157]
[1726447553995,0.08568588,2314.1,2313.7,4.32207]
[1726447553996,0.33163447,2314.1,2313.7,4.32207]
[1726447554221,0.55,2314.0,2313.4,4.3225]
[1726447554449,4.3221,2313.7,2313.2,4.3229]
[1726447554633,1.03721,2313.6,2313.0,4.32321]
[1726447554934,0.08534697,2313.5,2313.0,4.32321]
[1726447555998,0.08534697,2313.5,2313.2,4.323]
[1726447558436,0.55,2313.7,2313.3,4.32276]
[1726447558600,0.08507859,2313.6,2313.3,4.32276]
[1726447559311,0.08507859,2313.6,2313.2,4.32289]
[1726447560011,0.55,2313.5,2313.1,4.32309]
[1726447560442,0.08478905,2313.4,2313.1,4.32309]
[1726447560645,0.08478905,2313.4,2312.7,2.3866]
[1726447560854,7.37,2313.7,2313.4,4.32263]
[1726447561157,0.08478905,2313.6,2313.4,4.32263]
[1726447561503,0.08478905,2313.6,2313.4,4.32254]
[1726447561733,2.3497,2313.8,2313.6,4.32222]
[1726447562249,2.4923,2314.1,2313.7,4.32196]
[1726447562407,2.4923,2314.1,2313.7,4.32195]
[1726447562746,3.910628,2314.1,2313.5,4.32238]
[1726447563045,2.4923,2314.1,2313.9,4.32152]
[1726447563732,2.2671,2314.5,2314.1,4.32131]
[1726447563916,2.2671,2314.5,2313.9,4.32152]
[1726447563917,0.61220353,2314.4,2313.9,4.32152]
[1726447564117,0.61220353,2314.4,2313.8,4.32189]
[1726447564118,2.8171,2314.3,2313.8,4.32189]
[1726447564332,8.29025535,2314.3,2313.7,4.32206]
[1726447564650,4.32143,2314.1,2313.4,3.0]
[1726447564832,4.32143,2314.1,2313.5,4.32245]
[1726447564833,0.55,2313.8,2313.5,4.32245]
[1726447565203,2.2671,2313.9,2313.5,4.32231]
[1726447565441,2.9918393,2313.9,2313.5,4.32231]
[1726447565712,0.08478905,2313.8,2313.5,4.32231]
[1726447567011,0.08478905,2313.8,2313.5,8.64466]
[1726447567213,0.08478905,2313.8,2313.6,4.32216]
[1726447567507,0.08478905,2313.8,2313.7,4.32208]
[1726447567714,0.08478905,2313.8,2313.4,4.32256]
[1726447568035,2.358,2314.2,2313.4,4.32249]
[1726447568036,4.32135,2314.1,2313.4,4.32249]
[1726447568218,0.08478905,2314.0,2313.6,4.32217]
[1726447568798,0.08478905,2314.0,2313.9,4.3217]
[1726447569453,9.7179,2314.4,2314.0,4.3215]
[1726447569672,0.08478905,2314.3,2314.0,8.64291]
[1726447570206,0.08478905,2314.3,2314.0,4.32141]
[1726447570451,0.08478905,2314.3,2314.1,4.32133]
[1726447571009,0.08478905,2314.3,2314.0,4.32141]
[1726447571643,1.49712796,2314.3,2313.8,4.32177]
[1726447571943,1.49712796,2314.3,2313.6,8.64427]
[1726447571944,6.63644,2314.2,2313.6,8.64427]
[1726447572150,0.8133568,2314.1,2313.6,8.64427]
[1726447572350,0.89888735,2314.1,2313.6,8.64427]
[1726447572519,0.89888735,2314.1,2313.8,4.32189]
[1726447572520,0.08553055,2314.1,2313.8,4.32189]
[1726447573214,0.08553055,2314.1,2313.9,4.32154]
[1726447573413,0.08553055,2314.1,2313.8,4.32189]
[1726447573414,0.08553055,2314.1,2314.0,4.32152]
[1726447574645,2.4402,2314.5,2313.9,6.78955]
[1726447574845,0.5783495,2314.4,2314.0,4.3215]
[1726447575025,0.5783495,2314.4,2313.9,4.3216]
[1726447575026,0.5783495,2314.4,2314.1,4.32133]
[1726447575223,0.08548818,2314.4,2314.1,4.32133]
[1726447575819,0.08548818,2314.4,2313.9,4.32154]
[1726447576613,2.2733,2314.3,2313.9,4.32154]
[1726447576938,0.08557291,2314.2,2313.7,4.3219]
[1726447577315,4.32181,2313.9,2313.3,4.32264]
[1726447577515,2.2733,2313.7,2313.2,4.32299]
[1726447577738,0.08561527,2313.6,2313.1,2.3254]
[1726447578013,0.08561527,2313.6,2313.3,4.32281]
[1726447578431,0.08561527,2313.6,2313.5,4.32245]
[1726447578624,2.4316,2314.0,2313.7,4.32206]
[1726447578825,0.08545288,2313.9,2313.6,4.32224]
[1726447579632,0.33715817,2313.9,2313.4,3.0]
[1726447579839,4.65889817,2313.9,2313.1,2.4795]
[1726447580058,0.08545288,2313.9,2313.8,4.32189]
[1726447580266,2.4316,2314.2,2313.8,4.32177]
[1726447580558,2.4316,2314.2,2313.7,4.32195]
[1726447580559,0.08535402,2314.1,2313.7,4.32195]
[1726447580860,0.08535402,2314.1,2313.7,8.64391]
[1726447581054,0.08535402,2314.1,2313.8,4.32185]
[1726447581240,0.08535402,2314.1,2313.7,4.32195]
[1726447581662,0.08535402,2314.1,2313.4,14.00752445]
[1726447581954,0.08535402,2314.1,2313.9,8.64322]
[1726447582116,0.08535402,2314.1,2313.9,4.32161]
[1726447582319,2.4533,2314.4,2314.0,4.32142]
[1726447582519,3.265555,2314.4,2314.0,4.32142]
[1726447583145,3.265555,2314.4,2313.9,4.32161]
[1726447583554,3.265555,2314.4,2313.8,2.3892]
[1726447583857,0.55,2313.9,2313.4,3.0]
[1726447584080,0.55,2313.9,2313.3,4.32271]
[1726447584081,2.3727,2313.8,2313.3,4.32271]
[1726447584224,4.32208,2313.7,2313.1,8.64609]
[1726447584542,4.61435,2313.7,2313.2,4.323]
[1726447585146,8.93654,2313.7,2313.1,4.32302]
[1726447585352,1.130924,2313.6,2313.1,4.32302]
[1726447585521,2.2793,2313.6,2313.1,4.32302]
[1726447586860,2.2793,2313.6,2313.0,4.32337]
[1726447587366,2.2793,2313.6,2313.2,4.3229]
[1726447587572,6.67005335,2313.9,2313.6,4.32215]
[1726447587573,2.2793,2313.9,2313.6,4.32215]
[1726447587734,2.2793,2313.9,2313.7,4.32206]
[1726447588275,7.37,2314.0,2313.5,8.64467]
[1726447588423,7.37,2314.0,2313.5,4.32229]
[1726447589327,7.37,2314.0,2313.5,8.64463]
[1726447589516,7.37,2314.0,2313.6,4.32222]
[1726447589719,7.37,2314.0,2313.5,8.64463]
[1726447590526,0.55,2313.9,2313.4,7.32255]
[1726447590726,0.55,2313.9,2313.1,0.90558959]
[1726447590727,2.282,2313.7,2313.1,6.57809]
[1726447590936,2.282,2313.7,2313.1,4.32309]
[1726447591172,0.55,2313.5,2312.9,6.57847]
[1726447591353,0.55,2313.5,2312.9,4.32343]
[1726447591354,2.282,2313.4,2312.9,4.32343]
[1726447591535,2.282,2313.4,2313.0,4.32326]
[1726447593021,2.411,2313.6,2313.1,4.32302]
[1726447593222,2.411,2313.6,2313.1,5.001572]
[1726447593422,2.411,2313.6,2313.3,4.32281]
[1726447593651,2.411,2313.6,2313.3,4.3227]
[1726447593857,2.411,2313.6,2313.4,4.32252]
[1726447594068,1.34875001,2313.9,2313.4,4.32252]
[1726447594069,2.3719,2313.8,2313.4,4.32252]
[1726447594232,2.3719,2313.8,2313.5,4.32243]
[1726447594434,3.72065001,2314.0,2313.6,4.32214]
[1726447594687,3.58146211,2314.0,2313.6,4.32214]
[1726447595850,0.08485968,2313.9,2313.6,4.32214]
[1726447596881,0.08485968,2313.9,2313.7,4.32207]
[1726447597734,0.08485968,2313.9,2313.3,3.0]
[1726447598075,0.46541065,2313.9,2313.5,2.428]
[1726447598228,0.08485968,2313.9,2313.5,2.428]
[1726447598839,0.08485968,2313.9,2313.3,3.0]
[1726447599077,0.08485968,2313.9,2313.0,6.75128]
[1726447599078,0.55,2313.7,2313.0,6.75128]
[1726447599246,0.55,2313.7,2313.1,7.32308]
[1726447599451,0.08509981,2313.6,2313.3,4.32279]
[1726447599654,0.38364981,2313.6,2313.3,4.32279]
[1726447600357,0.08509981,2313.6,2313.3,4.32279]
[1726447600654,2.4355,2313.5,2313.1,11.64614]
[1726447601274,0.08509981,2313.4,2313.1,11.64614]
[1726447601650,0.08509981,2313.4,2313.2,4.32299]
[1726447602388,0.08509981,2313.4,2313.1,7.32306]
[1726447602688,0.33715979,2313.4,2313.0,3.0]
[1726447602844,0.33715979,2313.4,2313.0,7.32334]
[1726447603188,0.33715979,2313.4,2313.0,3.0]
[1726447604485,0.08509981,2313.4,2312.8,2.428]
[1726447604707,0.08509981,2313.4,2313.1,4.32309]
[1726447605044,0.08509981,2313.4,2313.1,8.64615]
[1726447605579,0.08509981,2313.4,2313.2,4.32301]
[1726447606388,0.08509981,2313.4,2313.1,4.32306]
[1726447606559,0.08509981,2313.4,2313.1,8.64615]
[1726447606756,0.08509981,2313.4,2313.1,4.32306]
[1726447607060,2.9419,2313.7,2313.3,4.32282]
[1726447607281,4.540165,2313.7,2313.3,4.32282]
[1726447607469,0.08509981,2313.6,2313.4,4.32263]
[1726447609199,0.08509981,2313.6,2313.5,4.32245]
[1726447609370,8.06219001,2314.0,2313.4,4.32254]
[1726447609733,0.08509981,2313.6,2313.4,4.32253]
[1726447609900,0.00598993,2313.9,2313.4,4.32253]
[1726447610396,2.4112,2313.7,2313.4,4.32253]
[1726447610756,2.4112,2313.7,2313.2,4.32285]
[1726447610957,0.08483141,2313.6,2313.3,4.32272]